Department family,Entity,Date,Expense type,Expense area,Supplier,Transaction number,Amount
Department of Health,Leicestershire Partnership NHS Trust,03/09/18,Crs_NHS_LT1y -Resus Inventory Supplied.,Balance Sheet Collection,NHS SUPPLY CHAIN (ST1450),1019106470,37715.21
Department of Health,Leicestershire Partnership NHS Trust,04/09/18,Payroll Deductions -Home Electronics 26 Sep 18,Balance Sheet Collection,SME HCI LTD,128721,26965.90
Department of Health,Leicestershire Partnership NHS Trust,05/09/18,GP IT Expenditure,Area Team,DELL COMPUTERS,7402465679,26400.00
Department of Health,Leicestershire Partnership NHS Trust,05/09/18,GP IT Expenditure,Area Team,DELL COMPUTERS,7402465659,29743.20
Department of Health,Leicestershire Partnership NHS Trust,05/09/18,Water & Sewerage Charges,"Beaumont Leys Health Centre (P94, LPT)",WATER PLUS,0865005329/INV01566364,389.81
Department of Health,Leicestershire Partnership NHS Trust,05/09/18,Water & Sewerage Charges,Bridge Park Road (Unit C18) (LPT),WATER PLUS,0865005329/INV01566364,64.02
Department of Health,Leicestershire Partnership NHS Trust,05/09/18,Water & Sewerage Charges,"Bridge Park Road - Units 2 and 3 (P148, LPT)",WATER PLUS,0865005329/INV01566364,2191.03
Department of Health,Leicestershire Partnership NHS Trust,05/09/18,Water & Sewerage Charges,"Coalville Community Hospital (P138, LPT)",WATER PLUS,0865005329/INV01566364,1073.14
Department of Health,Leicestershire Partnership NHS Trust,05/09/18,Water & Sewerage Charges,"Coalville Health Centre (P121, LPT)",WATER PLUS,0865005329/INV01566364,1417.57
Department of Health,Leicestershire Partnership NHS Trust,05/09/18,Water & Sewerage Charges,"Evington Centre (P6, LPT)",WATER PLUS,0865005329/INV01566364,6856.99
Department of Health,Leicestershire Partnership NHS Trust,05/09/18,Water & Sewerage Charges,"Feilding Palmer Hospital (Lutterworth) (P131, LPT)",WATER PLUS,0865005329/INV01566364,430.00
Department of Health,Leicestershire Partnership NHS Trust,05/09/18,Water & Sewerage Charges,HIS,WATER PLUS,0865005329/INV01566364,431.09
Department of Health,Leicestershire Partnership NHS Trust,05/09/18,Water & Sewerage Charges,Hinckley & District Hospital (PROPCO),WATER PLUS,0865005329/INV01566364,120.74
Department of Health,Leicestershire Partnership NHS Trust,05/09/18,Water & Sewerage Charges,"Hinckley and Bosworth Community Hospital (Sunnyside) (P133, LPT)",WATER PLUS,0865005329/INV01566364,8653.94
Department of Health,Leicestershire Partnership NHS Trust,05/09/18,Water & Sewerage Charges,"Hynca Lodge (P33, LPT)",WATER PLUS,0865005329/INV01566364,1059.68
Department of Health,Leicestershire Partnership NHS Trust,05/09/18,Water & Sewerage Charges,"Loughborough Hospital (P136, LPT)",WATER PLUS,0865005329/INV01566364,5038.39
Department of Health,Leicestershire Partnership NHS Trust,05/09/18,Water & Sewerage Charges,"Narborough Health Centre (P117, LPT)",WATER PLUS,0865005329/INV01566364,969.17
Department of Health,Leicestershire Partnership NHS Trust,05/09/18,Water & Sewerage Charges,"OSL House (P54, LPT)",WATER PLUS,0865005329/INV01566364,587.52
Department of Health,Leicestershire Partnership NHS Trust,05/09/18,Water & Sewerage Charges,"Orchard Resource Centre (P15, LPT)",WATER PLUS,0865005329/INV01566364,2283.02
Department of Health,Leicestershire Partnership NHS Trust,05/09/18,Water & Sewerage Charges,"Paget House (P55, LPT)",WATER PLUS,0865005329/INV01566364,140.47
Department of Health,Leicestershire Partnership NHS Trust,05/09/18,Water & Sewerage Charges,"Prince Philip House (P96, LPT)",WATER PLUS,0865005329/INV01566364,568.06
Department of Health,Leicestershire Partnership NHS Trust,05/09/18,Water & Sewerage Charges,Rothesay -  London Road 352A (LPT),WATER PLUS,0865005329/INV01566364,1037.88
Department of Health,Leicestershire Partnership NHS Trust,05/09/18,Water & Sewerage Charges,"Rubicon Close 3 (P56, LPT)",WATER PLUS,0865005329/INV01566364,208.71
Department of Health,Leicestershire Partnership NHS Trust,05/09/18,Water & Sewerage Charges,"Rutland Memorial Hospital (P134, LPT)",WATER PLUS,0865005329/INV01566364,1683.65
Department of Health,Leicestershire Partnership NHS Trust,05/09/18,Water & Sewerage Charges,"Shepshed Health Centre (P123, LPT)",WATER PLUS,0865005329/INV01566364,433.00
Department of Health,Leicestershire Partnership NHS Trust,05/09/18,Water & Sewerage Charges,"Springfield Road Health Centre (P92, LPT)",WATER PLUS,0865005329/INV01566364,1156.31
Department of Health,Leicestershire Partnership NHS Trust,05/09/18,Water & Sewerage Charges,"Stewart House (P61, LPT)",WATER PLUS,0865005329/INV01566364,1723.82
Department of Health,Leicestershire Partnership NHS Trust,05/09/18,Water & Sewerage Charges,"Swithland House - London Road 352 (P44, LPT)",WATER PLUS,0865005329/INV01566364,427.20
Department of Health,Leicestershire Partnership NHS Trust,05/09/18,Water & Sewerage Charges,"The Agnes Unit (AKA Assessment and Treatment Centre) (P85, LPT)",WATER PLUS,0865005329/INV01566364,3365.34
Department of Health,Leicestershire Partnership NHS Trust,05/09/18,Water & Sewerage Charges,"The Cedars (P19, LPT)",WATER PLUS,0865005329/INV01566364,346.62
Department of Health,Leicestershire Partnership NHS Trust,05/09/18,Water & Sewerage Charges,"The Grange 1 (P4, LPT)",WATER PLUS,0865005329/INV01566364,206.50
Department of Health,Leicestershire Partnership NHS Trust,05/09/18,Water & Sewerage Charges,"The Grange 2 (P41, LPT)",WATER PLUS,0865005329/INV01566364,201.44
Department of Health,Leicestershire Partnership NHS Trust,05/09/18,Water & Sewerage Charges,"The Willows - Cordelia Close (P22, LPT)",WATER PLUS,0865005329/INV01566364,2815.25
Department of Health,Leicestershire Partnership NHS Trust,05/09/18,Water & Sewerage Charges,"Westcotes Group - Tanglewood Resource Centre (P77, LPT)",WATER PLUS,0865005329/INV01566364,126.85
Department of Health,Leicestershire Partnership NHS Trust,05/09/18,Water & Sewerage Charges,"Westcotes Group -Westcotes House (P78, LPT)",WATER PLUS,0865005329/INV01566364,143.61
Department of Health,Leicestershire Partnership NHS Trust,05/09/18,External Data Processing / Storage,Records & information Governance,C & V DATA MANAGEMENT SRV LTD,0064475,30976.69
Department of Health,Leicestershire Partnership NHS Trust,05/09/18,Contract : Accomodation,Out of County Income - Inpateints Project,TURNING POINT,SI-TPS-00019561,48353.83
Department of Health,Leicestershire Partnership NHS Trust,05/09/18,Leased / Hired Vehicles,Adult City West CMHT - BHSCC,AUTOMOTIVE LEASING LTD,504315503,472.00
Department of Health,Leicestershire Partnership NHS Trust,05/09/18,Leased / Hired Vehicles,Autism,AUTOMOTIVE LEASING LTD,504315503,638.96
Department of Health,Leicestershire Partnership NHS Trust,05/09/18,Prep_ LT1y -Prepayments Lease Cars,Balance Sheet Collection,AUTOMOTIVE LEASING LTD,504315503,42977.17
Department of Health,Leicestershire Partnership NHS Trust,05/09/18,Trade_Drs_LT1y -Lease Cars Invoicing Contrl Ac.,Balance Sheet Collection,AUTOMOTIVE LEASING LTD,504315503,291.31
Department of Health,Leicestershire Partnership NHS Trust,05/09/18,Leased / Hired Vehicles,CAMHS Inpatient Service,AUTOMOTIVE LEASING LTD,504315503,30.00
Department of Health,Leicestershire Partnership NHS Trust,05/09/18,Leased / Hired Vehicles,Children's Occupational Therapy,AUTOMOTIVE LEASING LTD,504315503,10.00
Department of Health,Leicestershire Partnership NHS Trust,05/09/18,Leased / Hired Vehicles,County 0-19 Central Report,AUTOMOTIVE LEASING LTD,504315503,384.36
Department of Health,Leicestershire Partnership NHS Trust,05/09/18,Leased / Hired Vehicles,East Planned Care - Blaby/Lutterworth,AUTOMOTIVE LEASING LTD,504315503,25.00
Department of Health,Leicestershire Partnership NHS Trust,05/09/18,Leased / Hired Vehicles,Evening Service,AUTOMOTIVE LEASING LTD,504315503,608.44
Department of Health,Leicestershire Partnership NHS Trust,05/09/18,Leased / Hired Vehicles,Immunisation,AUTOMOTIVE LEASING LTD,504315503,2566.78
Department of Health,Leicestershire Partnership NHS Trust,05/09/18,Leased / Hired Vehicles,Information Services,AUTOMOTIVE LEASING LTD,504315503,500.00
Department of Health,Leicestershire Partnership NHS Trust,05/09/18,Leased / Hired Vehicles,Integrated Care Service - Rutland,AUTOMOTIVE LEASING LTD,504315503,93.00
Department of Health,Leicestershire Partnership NHS Trust,05/09/18,Leased / Hired Vehicles,LD County Nursing,AUTOMOTIVE LEASING LTD,504315503,10.00
Department of Health,Leicestershire Partnership NHS Trust,05/09/18,Leased / Hired Vehicles,Mental Health Triage Team,AUTOMOTIVE LEASING LTD,504315503,168.68
Department of Health,Leicestershire Partnership NHS Trust,05/09/18,Leased / Hired Vehicles,Mill Lodge,AUTOMOTIVE LEASING LTD,504315503,41.18
Department of Health,Leicestershire Partnership NHS Trust,05/09/18,Leased / Hired Vehicles,Neuro/Stroke Rehab Service,AUTOMOTIVE LEASING LTD,504315503,128.01
Department of Health,Leicestershire Partnership NHS Trust,05/09/18,Leased / Hired Vehicles,Quality & Professional Practice,AUTOMOTIVE LEASING LTD,504315503,4.38
Department of Health,Leicestershire Partnership NHS Trust,05/09/18,Leased / Hired Vehicles,Willows Unit,AUTOMOTIVE LEASING LTD,504315503,112.63
Department of Health,Leicestershire Partnership NHS Trust,05/09/18,Nurse - Band 6 -Agency,Adult City East CMHT - Merlyn Vaz,HCL NURSING,MAN28422,1515.76
Department of Health,Leicestershire Partnership NHS Trust,05/09/18,Nurse - Band 6 -Agency,Adult County North West Leicestershire CMHT,HCL NURSING,MAN28422,2139.75
Department of Health,Leicestershire Partnership NHS Trust,05/09/18,NURSE - BAND 5 - AGENCY,Ashby Ward (Bradgate Unit),HCL NURSING,MAN28422,266.75
Department of Health,Leicestershire Partnership NHS Trust,05/09/18,NURSE - BAND 2 - AGENCY,Aston Ward (Bradgate Unit),HCL NURSING,MAN28422,205.70
Department of Health,Leicestershire Partnership NHS Trust,05/09/18,NURSE - BAND 5 - AGENCY,Aston Ward (Bradgate Unit),HCL NURSING,MAN28422,1914.65
Department of Health,Leicestershire Partnership NHS Trust,05/09/18,NURSE - BAND 2 - AGENCY,Beaumont Ward - Bradgate Unit,HCL NURSING,MAN28422,90.08
Department of Health,Leicestershire Partnership NHS Trust,05/09/18,NURSE - BAND 5 - AGENCY,Beaumont Ward - Bradgate Unit,HCL NURSING,MAN28422,2004.87
Department of Health,Leicestershire Partnership NHS Trust,05/09/18,NURSE - BAND 2 - AGENCY,Belvoir Psychiatric Intensive Care Unit,HCL NURSING,MAN28422,1516.99
Department of Health,Leicestershire Partnership NHS Trust,05/09/18,NURSE - BAND 5 - AGENCY,Belvoir Psychiatric Intensive Care Unit,HCL NURSING,MAN28422,989.44
Department of Health,Leicestershire Partnership NHS Trust,05/09/18,NURSE - BAND 2 - AGENCY,Bosworth Ward - Bradgate Unit,HCL NURSING,MAN28422,951.93
Department of Health,Leicestershire Partnership NHS Trust,05/09/18,NURSE - BAND 5 - AGENCY,Bosworth Ward - Bradgate Unit,HCL NURSING,MAN28422,1522.93
Department of Health,Leicestershire Partnership NHS Trust,05/09/18,Nurse - Band 6 -Agency,Crisis Resolution,HCL NURSING,MAN28422,3378.61
Department of Health,Leicestershire Partnership NHS Trust,05/09/18,Nurse - Band 6 -Agency,Deliberate Self Harm,HCL NURSING,MAN28422,1958.11
Department of Health,Leicestershire Partnership NHS Trust,05/09/18,NURSE - BAND 2 - AGENCY,Griffin Ward (HPC),HCL NURSING,MAN28422,370.37
Department of Health,Leicestershire Partnership NHS Trust,05/09/18,NURSE - BAND 5 - AGENCY,Griffin Ward (HPC),HCL NURSING,MAN28422,1511.75
Department of Health,Leicestershire Partnership NHS Trust,05/09/18,NURSE - BAND 2 - AGENCY,Heather Ward,HCL NURSING,MAN28422,516.54
Department of Health,Leicestershire Partnership NHS Trust,05/09/18,NURSE - BAND 5 - AGENCY,Heather Ward,HCL NURSING,MAN28422,2456.28
Department of Health,Leicestershire Partnership NHS Trust,05/09/18,NURSE - BAND 2 - AGENCY,Maple Ward,HCL NURSING,MAN28422,223.60
Department of Health,Leicestershire Partnership NHS Trust,05/09/18,NURSE - BAND 5 - AGENCY,Mill Lodge,HCL NURSING,MAN28422,643.95
Department of Health,Leicestershire Partnership NHS Trust,05/09/18,NURSE - BAND 2 - AGENCY,Phoenix Ward (HPC),HCL NURSING,MAN28422,275.32
Department of Health,Leicestershire Partnership NHS Trust,05/09/18,NURSE - BAND 5 - AGENCY,Phoenix Ward (HPC),HCL NURSING,MAN28422,266.74
Department of Health,Leicestershire Partnership NHS Trust,05/09/18,NURSE - BAND 2 - AGENCY,Place Of Safety Assessment Unit,HCL NURSING,MAN28422,120.97
Department of Health,Leicestershire Partnership NHS Trust,05/09/18,NURSE - BAND 5 - AGENCY,Place Of Safety Assessment Unit,HCL NURSING,MAN28422,276.65
Department of Health,Leicestershire Partnership NHS Trust,05/09/18,NURSE - BAND 2 - AGENCY,Sycamore (Willows),HCL NURSING,MAN28422,168.41
Department of Health,Leicestershire Partnership NHS Trust,05/09/18,NURSE - BAND 2 - AGENCY,Thornton Ward - Bradgate Unit,HCL NURSING,MAN28422,212.69
Department of Health,Leicestershire Partnership NHS Trust,05/09/18,NURSE - BAND 2 - AGENCY,Watermead Ward (Bradgate Unit),HCL NURSING,MAN28422,205.70
Department of Health,Leicestershire Partnership NHS Trust,05/09/18,NURSE - BAND 5 - AGENCY,Watermead Ward (Bradgate Unit),HCL NURSING,MAN28422,2196.30
Department of Health,Leicestershire Partnership NHS Trust,06/09/18,Services / Recharges from NHS Trusts,Inter Unit I & E Distribution,UHL NHS TRUST (RWE),L0214852,179992.55
Department of Health,Leicestershire Partnership NHS Trust,06/09/18,Occupational Health,HR Operations,UHL NHS TRUST (RWE),L0214846,26622.00
Department of Health,Leicestershire Partnership NHS Trust,06/09/18,WIP Project Not in BS - Buildings excl Dwellings,Work in Progress,INTERSERVE CONSTRUCTION LTD,VEM54824,66407.07
Department of Health,Leicestershire Partnership NHS Trust,06/09/18,NURSE - BAND 2 - AGENCY,Beechwood Ward,HCL NURSING,MAN28423,826.69
Department of Health,Leicestershire Partnership NHS Trust,06/09/18,Nurse - Band 6 -Agency,City East CMHT MHSOP,HCL NURSING,MAN28423,1046.20
Department of Health,Leicestershire Partnership NHS Trust,06/09/18,NURSE - BAND 5 - AGENCY,City ICS,HCL NURSING,MAN28423,2698.75
Department of Health,Leicestershire Partnership NHS Trust,06/09/18,NURSE - BAND 5 - AGENCY,City Planned Care - East,HCL NURSING,MAN28423,12982.79
Department of Health,Leicestershire Partnership NHS Trust,06/09/18,NURSE - BAND 5 - AGENCY,City Planned Care - West,HCL NURSING,MAN28423,3917.82
Department of Health,Leicestershire Partnership NHS Trust,06/09/18,Nurse - Band 6 -Agency,City West CMHT MHSOP,HCL NURSING,MAN28423,1069.90
Department of Health,Leicestershire Partnership NHS Trust,06/09/18,NURSE - BAND 2 - AGENCY,Clarendon Ward,HCL NURSING,MAN28423,211.93
Department of Health,Leicestershire Partnership NHS Trust,06/09/18,NURSE - BAND 5 - AGENCY,Clarendon Ward,HCL NURSING,MAN28423,386.06
Department of Health,Leicestershire Partnership NHS Trust,06/09/18,NURSE - BAND 2 - AGENCY,Coalville Snibston Ward,HCL NURSING,MAN28423,176.93
Department of Health,Leicestershire Partnership NHS Trust,06/09/18,NURSE - BAND 2 - AGENCY,Coalville Ward 2,HCL NURSING,MAN28423,1175.70
Department of Health,Leicestershire Partnership NHS Trust,06/09/18,NURSE - BAND 5 - AGENCY,Dalgliesh Ward,HCL NURSING,MAN28423,1599.91
Department of Health,Leicestershire Partnership NHS Trust,06/09/18,NURSE - BAND 5 - AGENCY,"East Planned Care - Melton,Syston,Rutland",HCL NURSING,MAN28423,501.44
Department of Health,Leicestershire Partnership NHS Trust,06/09/18,NURSE - BAND 5 - AGENCY,Evening Service,HCL NURSING,MAN28423,1139.72
Department of Health,Leicestershire Partnership NHS Trust,06/09/18,NURSE - BAND 2 - AGENCY,Fielding Palmer Nursing,HCL NURSING,MAN28423,533.85
Department of Health,Leicestershire Partnership NHS Trust,06/09/18,NURSE - BAND 5 - AGENCY,Fielding Palmer Nursing,HCL NURSING,MAN28423,2158.64
Department of Health,Leicestershire Partnership NHS Trust,06/09/18,NURSE - BAND 2 - AGENCY,Gwendolen Ward,HCL NURSING,MAN28423,2180.27
Department of Health,Leicestershire Partnership NHS Trust,06/09/18,NURSE - BAND 5 - AGENCY,Gwendolen Ward,HCL NURSING,MAN28423,302.58
Department of Health,Leicestershire Partnership NHS Trust,06/09/18,NURSE - BAND 2 - AGENCY,H&B Comm Hosp East Ward,HCL NURSING,MAN28423,689.17
Department of Health,Leicestershire Partnership NHS Trust,06/09/18,NURSE - BAND 5 - AGENCY,H&B Comm Hosp East Ward,HCL NURSING,MAN28423,434.44
Department of Health,Leicestershire Partnership NHS Trust,06/09/18,NURSE - BAND 2 - AGENCY,H&B Comm Hosp North Ward,HCL NURSING,MAN28423,1713.28
Department of Health,Leicestershire Partnership NHS Trust,06/09/18,NURSE - BAND 5 - AGENCY,H&B Comm Hosp North Ward,HCL NURSING,MAN28423,812.75
Department of Health,Leicestershire Partnership NHS Trust,06/09/18,NURSE - BAND 2 - AGENCY,Kirby Ward,HCL NURSING,MAN28423,308.52
Department of Health,Leicestershire Partnership NHS Trust,06/09/18,NURSE - BAND 5 - AGENCY,Kirby Ward,HCL NURSING,MAN28423,2739.59
Department of Health,Leicestershire Partnership NHS Trust,06/09/18,Nurse - Band 6 -Agency,MHSOP Integrated Care Team,HCL NURSING,MAN28423,836.96
Department of Health,Leicestershire Partnership NHS Trust,06/09/18,NURSE - BAND 5 - AGENCY,North West ICS,HCL NURSING,MAN28423,1852.87
Department of Health,Leicestershire Partnership NHS Trust,06/09/18,NURSE - BAND 5 - AGENCY,South East ICS,HCL NURSING,MAN28423,3701.34
Department of Health,Leicestershire Partnership NHS Trust,06/09/18,NURSE - BAND 2 - AGENCY,St Lukes Stroke Ward,HCL NURSING,MAN28423,878.73
Department of Health,Leicestershire Partnership NHS Trust,06/09/18,NURSE - BAND 5 - AGENCY,St Lukes Stroke Ward,HCL NURSING,MAN28423,779.41
Department of Health,Leicestershire Partnership NHS Trust,06/09/18,NURSE - BAND 5 - AGENCY,St Lukes Ward 3,HCL NURSING,MAN28423,3033.71
Department of Health,Leicestershire Partnership NHS Trust,06/09/18,NURSE - BAND 5 - AGENCY,Welford Ward,HCL NURSING,MAN28423,302.57
Department of Health,Leicestershire Partnership NHS Trust,06/09/18,NURSE - BAND 3 - AGENCY,West Planned Care  - Charnwood Hub,HCL NURSING,MAN28423,674.13
Department of Health,Leicestershire Partnership NHS Trust,06/09/18,NURSE - BAND 5 - AGENCY,West Planned Care  - Charnwood Hub,HCL NURSING,MAN28423,1981.46
Department of Health,Leicestershire Partnership NHS Trust,06/09/18,NURSE - BAND 5 - AGENCY,West Planned Care - NWL Hub,HCL NURSING,MAN28423,172.94
Department of Health,Leicestershire Partnership NHS Trust,11/09/18,Payroll Deductions -Salary Sacrifice Cars Scheme,Balance Sheet Collection,TUSKER,LPT801-0918,29094.71
Department of Health,Leicestershire Partnership NHS Trust,11/09/18,NURSE - BAND 5 - AGENCY,AGNES UNIT POD 1,HCL NURSING,MAN28490,298.06
Department of Health,Leicestershire Partnership NHS Trust,11/09/18,NURSE - BAND 5 - AGENCY,Access Bed Management Team,HCL NURSING,MAN28490,426.69
Department of Health,Leicestershire Partnership NHS Trust,11/09/18,Nurse - Band 6 -Agency,Adult City East CMHT - Merlyn Vaz,HCL NURSING,MAN28490,1109.85
Department of Health,Leicestershire Partnership NHS Trust,11/09/18,Nurse - Band 6 -Agency,Adult County North West Leicestershire CMHT,HCL NURSING,MAN28490,641.93
Department of Health,Leicestershire Partnership NHS Trust,11/09/18,NURSE - BAND 2 - AGENCY,Aston Ward (Bradgate Unit),HCL NURSING,MAN28490,422.32
Department of Health,Leicestershire Partnership NHS Trust,11/09/18,NURSE - BAND 5 - AGENCY,Aston Ward (Bradgate Unit),HCL NURSING,MAN28490,2579.69
Department of Health,Leicestershire Partnership NHS Trust,11/09/18,NURSE - BAND 5 - AGENCY,Beaumont Ward - Bradgate Unit,HCL NURSING,MAN28490,1202.40
Department of Health,Leicestershire Partnership NHS Trust,11/09/18,NURSE - BAND 2 - AGENCY,Belvoir Psychiatric Intensive Care Unit,HCL NURSING,MAN28490,685.82
Department of Health,Leicestershire Partnership NHS Trust,11/09/18,NURSE - BAND 5 - AGENCY,Belvoir Psychiatric Intensive Care Unit,HCL NURSING,MAN28490,1740.34
Department of Health,Leicestershire Partnership NHS Trust,11/09/18,NURSE - BAND 2 - AGENCY,Bosworth Ward - Bradgate Unit,HCL NURSING,MAN28490,247.22
Department of Health,Leicestershire Partnership NHS Trust,11/09/18,NURSE - BAND 5 - AGENCY,Bosworth Ward - Bradgate Unit,HCL NURSING,MAN28490,266.74
Department of Health,Leicestershire Partnership NHS Trust,11/09/18,Nurse - Band 6 -Agency,Crisis Resolution,HCL NURSING,MAN28490,6629.32
Department of Health,Leicestershire Partnership NHS Trust,11/09/18,Nurse - Band 6 -Agency,Deliberate Self Harm,HCL NURSING,MAN28490,2215.09
Department of Health,Leicestershire Partnership NHS Trust,11/09/18,NURSE - BAND 2 - AGENCY,Griffin Ward (HPC),HCL NURSING,MAN28490,186.39
Department of Health,Leicestershire Partnership NHS Trust,11/09/18,NURSE - BAND 5 - AGENCY,Griffin Ward (HPC),HCL NURSING,MAN28490,3089.42
Department of Health,Leicestershire Partnership NHS Trust,11/09/18,NURSE - BAND 2 - AGENCY,Heather Ward,HCL NURSING,MAN28490,211.93
Department of Health,Leicestershire Partnership NHS Trust,11/09/18,NURSE - BAND 5 - AGENCY,Heather Ward,HCL NURSING,MAN28490,2818.15
Department of Health,Leicestershire Partnership NHS Trust,11/09/18,NURSE - BAND 5 - AGENCY,Mill Lodge,HCL NURSING,MAN28490,2046.94
Department of Health,Leicestershire Partnership NHS Trust,11/09/18,NURSE - BAND 2 - AGENCY,Phoenix Ward (HPC),HCL NURSING,MAN28490,168.41
Department of Health,Leicestershire Partnership NHS Trust,11/09/18,NURSE - BAND 5 - AGENCY,Place Of Safety Assessment Unit,HCL NURSING,MAN28490,426.69
Department of Health,Leicestershire Partnership NHS Trust,11/09/18,NURSE - BAND 2 - AGENCY,Thornton Ward - Bradgate Unit,HCL NURSING,MAN28490,419.10
Department of Health,Leicestershire Partnership NHS Trust,11/09/18,Rent,Bridge Park Plaza - First Floor (LPT),RAYNSWAY PROPERTIES LTD,INV-0108,70816.80
Department of Health,Leicestershire Partnership NHS Trust,11/09/18,CHP Estates Management,Belgrave Health Centre (CHP),COMM HLTH PARTNERSHIPS LTD,0060080407,9041.24
Department of Health,Leicestershire Partnership NHS Trust,11/09/18,CHP Estates Management,Merlyn Vaz Centre (CHP),COMM HLTH PARTNERSHIPS LTD,0060080407,60957.31
Department of Health,Leicestershire Partnership NHS Trust,11/09/18,CHP Estates Management,Westcotes Health Centre (CHP),COMM HLTH PARTNERSHIPS LTD,0060080407,11853.09
Department of Health,Leicestershire Partnership NHS Trust,11/09/18,Crs_NHS_LT1y -Resus Inventory Supplied.,Balance Sheet Collection,NHS SUPPLY CHAIN (ST1450),1019110588,54627.80
Department of Health,Leicestershire Partnership NHS Trust,12/09/18,Payroll Deductions - Kiddi Vouchers,Balance Sheet Collection,WIDER PLAN LTD,4365140,45285.18
Department of Health,Leicestershire Partnership NHS Trust,12/09/18,Med Trainees - FY1,Medical Trainees,UHL NHS TRUST (RWE),L0215079,42068.00
Department of Health,Leicestershire Partnership NHS Trust,12/09/18,Rent,County Hall,LEIC COUNTY COUNCIL,6278722,34488.50
Department of Health,Leicestershire Partnership NHS Trust,14/09/18,Insurance Costs,Chief Executives Office,NHS LITIGATION AUTHORITY,SICX/00134356,85763.50
Department of Health,Leicestershire Partnership NHS Trust,17/09/18,Crs_NHS_LT1y -Resus Inventory Supplied.,Balance Sheet Collection,NHS SUPPLY CHAIN (ST1450),1019117610,48964.47
Department of Health,Leicestershire Partnership NHS Trust,18/09/18,NURSE - BAND 2 - AGENCY,Beechwood Ward,HCL NURSING,MAN28491,239.57
Department of Health,Leicestershire Partnership NHS Trust,18/09/18,NURSE - BAND 5 - AGENCY,Beechwood Ward,HCL NURSING,MAN28491,266.74
Department of Health,Leicestershire Partnership NHS Trust,18/09/18,Nurse - Band 6 -Agency,City East CMHT MHSOP,HCL NURSING,MAN28491,1046.16
Department of Health,Leicestershire Partnership NHS Trust,18/09/18,NURSE - BAND 5 - AGENCY,City ICS,HCL NURSING,MAN28491,169.65
Department of Health,Leicestershire Partnership NHS Trust,18/09/18,NURSE - BAND 5 - AGENCY,City Planned Care - East,HCL NURSING,MAN28491,13386.68
Department of Health,Leicestershire Partnership NHS Trust,18/09/18,NURSE - BAND 5 - AGENCY,City Planned Care - West,HCL NURSING,MAN28491,3556.25
Department of Health,Leicestershire Partnership NHS Trust,18/09/18,Nurse - Band 6 -Agency,City West CMHT MHSOP,HCL NURSING,MAN28491,855.90
Department of Health,Leicestershire Partnership NHS Trust,18/09/18,NURSE - BAND 2 - AGENCY,Coalville Snibston Ward,HCL NURSING,MAN28491,116.19
Department of Health,Leicestershire Partnership NHS Trust,18/09/18,NURSE - BAND 2 - AGENCY,Coalville Ward 2,HCL NURSING,MAN28491,1764.53
Department of Health,Leicestershire Partnership NHS Trust,18/09/18,NURSE - BAND 2 - AGENCY,Coleman Ward,HCL NURSING,MAN28491,1047.44
Department of Health,Leicestershire Partnership NHS Trust,18/09/18,NURSE - BAND 5 - AGENCY,Coleman Ward,HCL NURSING,MAN28491,312.72
Department of Health,Leicestershire Partnership NHS Trust,18/09/18,NURSE - BAND 2 - AGENCY,Dalgliesh Ward,HCL NURSING,MAN28491,239.57
Department of Health,Leicestershire Partnership NHS Trust,18/09/18,NURSE - BAND 5 - AGENCY,Dalgliesh Ward,HCL NURSING,MAN28491,792.30
Department of Health,Leicestershire Partnership NHS Trust,18/09/18,NURSE - BAND 3 - AGENCY,East Planned Care - Blaby/Lutterworth,HCL NURSING,MAN28491,1294.28
Department of Health,Leicestershire Partnership NHS Trust,18/09/18,NURSE - BAND 5 - AGENCY,"East Planned Care - Melton,Syston,Rutland",HCL NURSING,MAN28491,1330.87
Department of Health,Leicestershire Partnership NHS Trust,18/09/18,NURSE - BAND 5 - AGENCY,"East Planned Care - Oadby,Wigston & Harborough",HCL NURSING,MAN28491,55.57
Department of Health,Leicestershire Partnership NHS Trust,18/09/18,NURSE - BAND 5 - AGENCY,Evening Service,HCL NURSING,MAN28491,393.41
Department of Health,Leicestershire Partnership NHS Trust,18/09/18,NURSE - BAND 2 - AGENCY,Fielding Palmer Nursing,HCL NURSING,MAN28491,723.47
Department of Health,Leicestershire Partnership NHS Trust,18/09/18,NURSE - BAND 5 - AGENCY,Fielding Palmer Nursing,HCL NURSING,MAN28491,1305.41
Department of Health,Leicestershire Partnership NHS Trust,18/09/18,NURSE - BAND 2 - AGENCY,Gwendolen Ward,HCL NURSING,MAN28491,3278.42
Department of Health,Leicestershire Partnership NHS Trust,18/09/18,NURSE - BAND 2 - AGENCY,H&B Comm Hosp East Ward,HCL NURSING,MAN28491,1209.45
Department of Health,Leicestershire Partnership NHS Trust,18/09/18,NURSE - BAND 5 - AGENCY,H&B Comm Hosp East Ward,HCL NURSING,MAN28491,812.47
Department of Health,Leicestershire Partnership NHS Trust,18/09/18,NURSE - BAND 2 - AGENCY,H&B Comm Hosp North Ward,HCL NURSING,MAN28491,1933.13
Department of Health,Leicestershire Partnership NHS Trust,18/09/18,NURSE - BAND 5 - AGENCY,H&B Comm Hosp North Ward,HCL NURSING,MAN28491,772.13
Department of Health,Leicestershire Partnership NHS Trust,18/09/18,NURSE - BAND 2 - AGENCY,Kirby Ward,HCL NURSING,MAN28491,452.25
Department of Health,Leicestershire Partnership NHS Trust,18/09/18,NURSE - BAND 5 - AGENCY,Kirby Ward,HCL NURSING,MAN28491,990.01
Department of Health,Leicestershire Partnership NHS Trust,18/09/18,NURSE - BAND 2 - AGENCY,Lough Swithland Ward,HCL NURSING,MAN28491,941.38
Department of Health,Leicestershire Partnership NHS Trust,18/09/18,Nurse - Band 6 -Agency,MHSOP Integrated Care Team,HCL NURSING,MAN28491,627.70
Department of Health,Leicestershire Partnership NHS Trust,18/09/18,NURSE - BAND 5 - AGENCY,North West ICS,HCL NURSING,MAN28491,1825.21
Department of Health,Leicestershire Partnership NHS Trust,18/09/18,NURSE - BAND 5 - AGENCY,South East ICS,HCL NURSING,MAN28491,4351.44
Department of Health,Leicestershire Partnership NHS Trust,18/09/18,NURSE - BAND 2 - AGENCY,St Lukes Stroke Ward,HCL NURSING,MAN28491,654.92
Department of Health,Leicestershire Partnership NHS Trust,18/09/18,NURSE - BAND 2 - AGENCY,St Lukes Ward 3,HCL NURSING,MAN28491,451.50
Department of Health,Leicestershire Partnership NHS Trust,18/09/18,NURSE - BAND 5 - AGENCY,St Lukes Ward 3,HCL NURSING,MAN28491,1965.06
Department of Health,Leicestershire Partnership NHS Trust,18/09/18,NURSE - BAND 2 - AGENCY,Welford Ward,HCL NURSING,MAN28491,234.61
Department of Health,Leicestershire Partnership NHS Trust,18/09/18,NURSE - BAND 5 - AGENCY,Welford Ward,HCL NURSING,MAN28491,302.58
Department of Health,Leicestershire Partnership NHS Trust,18/09/18,NURSE - BAND 3 - AGENCY,West Planned Care  - Charnwood Hub,HCL NURSING,MAN28491,310.79
Department of Health,Leicestershire Partnership NHS Trust,18/09/18,NURSE - BAND 5 - AGENCY,West Planned Care  - Charnwood Hub,HCL NURSING,MAN28491,2250.33
Department of Health,Leicestershire Partnership NHS Trust,18/09/18,NURSE - BAND 5 - AGENCY,Beechwood Ward,HCL NURSING,MAN28399,681.51
Department of Health,Leicestershire Partnership NHS Trust,18/09/18,Nurse - Band 6 -Agency,City East CMHT MHSOP,HCL NURSING,MAN28399,836.93
Department of Health,Leicestershire Partnership NHS Trust,18/09/18,NURSE - BAND 5 - AGENCY,City ICS,HCL NURSING,MAN28399,871.47
Department of Health,Leicestershire Partnership NHS Trust,18/09/18,NURSE - BAND 5 - AGENCY,City Planned Care - East,HCL NURSING,MAN28399,9205.02
Department of Health,Leicestershire Partnership NHS Trust,18/09/18,NURSE - BAND 5 - AGENCY,City Planned Care - West,HCL NURSING,MAN28399,2268.37
Department of Health,Leicestershire Partnership NHS Trust,18/09/18,Nurse - Band 6 -Agency,City West CMHT MHSOP,HCL NURSING,MAN28399,1069.88
Department of Health,Leicestershire Partnership NHS Trust,18/09/18,NURSE - BAND 2 - AGENCY,Clarendon Ward,HCL NURSING,MAN28399,635.80
Department of Health,Leicestershire Partnership NHS Trust,18/09/18,NURSE - BAND 5 - AGENCY,Clarendon Ward,HCL NURSING,MAN28399,368.70
Department of Health,Leicestershire Partnership NHS Trust,18/09/18,NURSE - BAND 2 - AGENCY,Coalville Snibston Ward,HCL NURSING,MAN28399,109.19
Department of Health,Leicestershire Partnership NHS Trust,18/09/18,NURSE - BAND 2 - AGENCY,Coalville Ward 2,HCL NURSING,MAN28399,345.35
Department of Health,Leicestershire Partnership NHS Trust,18/09/18,NURSE - BAND 2 - AGENCY,Coleman Ward,HCL NURSING,MAN28399,295.86
Department of Health,Leicestershire Partnership NHS Trust,18/09/18,Nurse - Band 6 -Agency,Crisis Resolution,HCL NURSING,MAN28399,94.84
Department of Health,Leicestershire Partnership NHS Trust,18/09/18,NURSE - BAND 2 - AGENCY,Dalgliesh Ward,HCL NURSING,MAN28399,423.87
Department of Health,Leicestershire Partnership NHS Trust,18/09/18,NURSE - BAND 5 - AGENCY,Dalgliesh Ward,HCL NURSING,MAN28399,1815.54
Department of Health,Leicestershire Partnership NHS Trust,18/09/18,NURSE - BAND 3 - AGENCY,East Planned Care - Blaby/Lutterworth,HCL NURSING,MAN28399,913.72
Department of Health,Leicestershire Partnership NHS Trust,18/09/18,NURSE - BAND 5 - AGENCY,"East Planned Care - Melton,Syston,Rutland",HCL NURSING,MAN28399,963.27
Department of Health,Leicestershire Partnership NHS Trust,18/09/18,NURSE - BAND 3 - AGENCY,"East Planned Care - Oadby,Wigston & Harborough",HCL NURSING,MAN28399,572.67
Department of Health,Leicestershire Partnership NHS Trust,18/09/18,NURSE - BAND 5 - AGENCY,Evening Service,HCL NURSING,MAN28399,964.47
Department of Health,Leicestershire Partnership NHS Trust,18/09/18,NURSE - BAND 2 - AGENCY,Fielding Palmer Nursing,HCL NURSING,MAN28399,116.19
Department of Health,Leicestershire Partnership NHS Trust,18/09/18,NURSE - BAND 5 - AGENCY,Fielding Palmer Nursing,HCL NURSING,MAN28399,1241.57
Department of Health,Leicestershire Partnership NHS Trust,18/09/18,NURSE - BAND 2 - AGENCY,Gwendolen Ward,HCL NURSING,MAN28399,1294.78
Department of Health,Leicestershire Partnership NHS Trust,18/09/18,NURSE - BAND 5 - AGENCY,Gwendolen Ward,HCL NURSING,MAN28399,307.74
Department of Health,Leicestershire Partnership NHS Trust,18/09/18,NURSE - BAND 2 - AGENCY,H&B Comm Hosp East Ward,HCL NURSING,MAN28399,950.85
Department of Health,Leicestershire Partnership NHS Trust,18/09/18,NURSE - BAND 5 - AGENCY,H&B Comm Hosp East Ward,HCL NURSING,MAN28399,172.94
Department of Health,Leicestershire Partnership NHS Trust,18/09/18,NURSE - BAND 2 - AGENCY,H&B Comm Hosp North Ward,HCL NURSING,MAN28399,3443.75
Department of Health,Leicestershire Partnership NHS Trust,18/09/18,NURSE - BAND 2 - AGENCY,Kirby Ward,HCL NURSING,MAN28399,182.01
Department of Health,Leicestershire Partnership NHS Trust,18/09/18,NURSE - BAND 2 - AGENCY,Lough Swithland Ward,HCL NURSING,MAN28399,1561.21
Department of Health,Leicestershire Partnership NHS Trust,18/09/18,NURSE - BAND 5 - AGENCY,Lough Swithland Ward,HCL NURSING,MAN28399,1158.19
Department of Health,Leicestershire Partnership NHS Trust,18/09/18,Nurse - Band 6 -Agency,MHSOP Integrated Care Team,HCL NURSING,MAN28399,2092.33
Department of Health,Leicestershire Partnership NHS Trust,18/09/18,NURSE - BAND 5 - AGENCY,North West ICS,HCL NURSING,MAN28399,1237.11
Department of Health,Leicestershire Partnership NHS Trust,18/09/18,NURSE - BAND 5 - AGENCY,South East ICS,HCL NURSING,MAN28399,4242.11
Department of Health,Leicestershire Partnership NHS Trust,18/09/18,NURSE - BAND 2 - AGENCY,St Lukes Stroke Ward,HCL NURSING,MAN28399,211.93
Department of Health,Leicestershire Partnership NHS Trust,18/09/18,NURSE - BAND 5 - AGENCY,St Lukes Stroke Ward,HCL NURSING,MAN28399,386.06
Department of Health,Leicestershire Partnership NHS Trust,18/09/18,NURSE - BAND 5 - AGENCY,St Lukes Ward 3,HCL NURSING,MAN28399,4046.00
Department of Health,Leicestershire Partnership NHS Trust,18/09/18,NURSE - BAND 3 - AGENCY,West Planned Care  - Charnwood Hub,HCL NURSING,MAN28399,372.95
Department of Health,Leicestershire Partnership NHS Trust,18/09/18,NURSE - BAND 5 - AGENCY,West Planned Care  - Charnwood Hub,HCL NURSING,MAN28399,1773.07
Department of Health,Leicestershire Partnership NHS Trust,18/09/18,Nurse - Band 6 -Agency,City East CMHT MHSOP,HCL NURSING,MAN28365,836.93
Department of Health,Leicestershire Partnership NHS Trust,18/09/18,NURSE - BAND 5 - AGENCY,City Planned Care - East,HCL NURSING,MAN28365,11154.18
Department of Health,Leicestershire Partnership NHS Trust,18/09/18,NURSE - BAND 5 - AGENCY,City Planned Care - West,HCL NURSING,MAN28365,3571.35
Department of Health,Leicestershire Partnership NHS Trust,18/09/18,Nurse - Band 6 -Agency,City West CMHT MHSOP,HCL NURSING,MAN28365,2286.44
Department of Health,Leicestershire Partnership NHS Trust,18/09/18,NURSE - BAND 2 - AGENCY,Clarendon Ward,HCL NURSING,MAN28365,1227.60
Department of Health,Leicestershire Partnership NHS Trust,18/09/18,NURSE - BAND 2 - AGENCY,Coalville Snibston Ward,HCL NURSING,MAN28365,176.94
Department of Health,Leicestershire Partnership NHS Trust,18/09/18,NURSE - BAND 2 - AGENCY,Coalville Ward 2,HCL NURSING,MAN28365,168.41
Department of Health,Leicestershire Partnership NHS Trust,18/09/18,NURSE - BAND 2 - AGENCY,Coleman Ward,HCL NURSING,MAN28365,388.86
Department of Health,Leicestershire Partnership NHS Trust,18/09/18,NURSE - BAND 2 - AGENCY,Dalgliesh Ward,HCL NURSING,MAN28365,772.14
Department of Health,Leicestershire Partnership NHS Trust,18/09/18,NURSE - BAND 5 - AGENCY,Dalgliesh Ward,HCL NURSING,MAN28365,1218.71
Department of Health,Leicestershire Partnership NHS Trust,18/09/18,NURSE - BAND 3 - AGENCY,East Planned Care - Blaby/Lutterworth,HCL NURSING,MAN28365,857.30
Department of Health,Leicestershire Partnership NHS Trust,18/09/18,NURSE - BAND 5 - AGENCY,"East Planned Care - Melton,Syston,Rutland",HCL NURSING,MAN28365,1687.40
Department of Health,Leicestershire Partnership NHS Trust,18/09/18,NURSE - BAND 3 - AGENCY,"East Planned Care - Oadby,Wigston & Harborough",HCL NURSING,MAN28365,615.54
Department of Health,Leicestershire Partnership NHS Trust,18/09/18,NURSE - BAND 5 - AGENCY,"East Planned Care - Oadby,Wigston & Harborough",HCL NURSING,MAN28365,189.58
Department of Health,Leicestershire Partnership NHS Trust,18/09/18,NURSE - BAND 5 - AGENCY,Evening Service,HCL NURSING,MAN28365,1424.66
Department of Health,Leicestershire Partnership NHS Trust,18/09/18,NURSE - BAND 2 - AGENCY,Fielding Palmer Nursing,HCL NURSING,MAN28365,555.10
Department of Health,Leicestershire Partnership NHS Trust,18/09/18,NURSE - BAND 5 - AGENCY,Fielding Palmer Nursing,HCL NURSING,MAN28365,2102.07
Department of Health,Leicestershire Partnership NHS Trust,18/09/18,NURSE - BAND 2 - AGENCY,Gwendolen Ward,HCL NURSING,MAN28365,641.05
Department of Health,Leicestershire Partnership NHS Trust,18/09/18,NURSE - BAND 2 - AGENCY,H&B Comm Hosp East Ward,HCL NURSING,MAN28365,1412.52
Department of Health,Leicestershire Partnership NHS Trust,18/09/18,NURSE - BAND 5 - AGENCY,H&B Comm Hosp East Ward,HCL NURSING,MAN28365,559.01
Department of Health,Leicestershire Partnership NHS Trust,18/09/18,NURSE - BAND 2 - AGENCY,H&B Comm Hosp North Ward,HCL NURSING,MAN28365,2634.72
Department of Health,Leicestershire Partnership NHS Trust,18/09/18,NURSE - BAND 2 - AGENCY,Kirby Ward,HCL NURSING,MAN28365,553.81
Department of Health,Leicestershire Partnership NHS Trust,18/09/18,NURSE - BAND 5 - AGENCY,Kirby Ward,HCL NURSING,MAN28365,293.08
Department of Health,Leicestershire Partnership NHS Trust,18/09/18,NURSE - BAND 2 - AGENCY,Lough Swithland Ward,HCL NURSING,MAN28365,1187.17
Department of Health,Leicestershire Partnership NHS Trust,18/09/18,NURSE - BAND 5 - AGENCY,Lough Swithland Ward,HCL NURSING,MAN28365,1158.19
Department of Health,Leicestershire Partnership NHS Trust,18/09/18,NURSE - BAND 3 - AGENCY,North West ICS,HCL NURSING,MAN28365,211.95
Department of Health,Leicestershire Partnership NHS Trust,18/09/18,NURSE - BAND 5 - AGENCY,North West ICS,HCL NURSING,MAN28365,1220.42
Department of Health,Leicestershire Partnership NHS Trust,18/09/18,NURSE - BAND 5 - AGENCY,South East ICS,HCL NURSING,MAN28365,5290.82
Department of Health,Leicestershire Partnership NHS Trust,18/09/18,NURSE - BAND 2 - AGENCY,St Lukes Stroke Ward,HCL NURSING,MAN28365,539.67
Department of Health,Leicestershire Partnership NHS Trust,18/09/18,NURSE - BAND 5 - AGENCY,St Lukes Stroke Ward,HCL NURSING,MAN28365,799.58
Department of Health,Leicestershire Partnership NHS Trust,18/09/18,NURSE - BAND 5 - AGENCY,St Lukes Ward 3,HCL NURSING,MAN28365,1474.96
Department of Health,Leicestershire Partnership NHS Trust,18/09/18,NURSE - BAND 2 - AGENCY,Welford Ward,HCL NURSING,MAN28365,113.85
Department of Health,Leicestershire Partnership NHS Trust,18/09/18,NURSE - BAND 5 - AGENCY,Welford Ward,HCL NURSING,MAN28365,615.30
Department of Health,Leicestershire Partnership NHS Trust,18/09/18,NURSE - BAND 3 - AGENCY,West Planned Care  - Charnwood Hub,HCL NURSING,MAN28365,843.85
Department of Health,Leicestershire Partnership NHS Trust,18/09/18,NURSE - BAND 5 - AGENCY,West Planned Care  - Charnwood Hub,HCL NURSING,MAN28365,2352.67
Department of Health,Leicestershire Partnership NHS Trust,18/09/18,Nurse - Band 6 -Agency,Adult City East CMHT - Merlyn Vaz,HCL NURSING,MAN28520,1754.12
Department of Health,Leicestershire Partnership NHS Trust,18/09/18,Nurse - Band 6 -Agency,Adult County Charnwood CMHT - Loughborough Base,HCL NURSING,MAN28520,1692.83
Department of Health,Leicestershire Partnership NHS Trust,18/09/18,Nurse - Band 6 -Agency,Adult County North West Leicestershire CMHT,HCL NURSING,MAN28520,659.98
Department of Health,Leicestershire Partnership NHS Trust,18/09/18,NURSE - BAND 5 - AGENCY,Aston Ward (Bradgate Unit),HCL NURSING,MAN28520,433.09
Department of Health,Leicestershire Partnership NHS Trust,18/09/18,NURSE - BAND 2 - AGENCY,Beaumont Ward - Bradgate Unit,HCL NURSING,MAN28520,113.85
Department of Health,Leicestershire Partnership NHS Trust,18/09/18,NURSE - BAND 5 - AGENCY,Beaumont Ward - Bradgate Unit,HCL NURSING,MAN28520,1210.85
Department of Health,Leicestershire Partnership NHS Trust,18/09/18,NURSE - BAND 2 - AGENCY,Belvoir Psychiatric Intensive Care Unit,HCL NURSING,MAN28520,2022.69
Department of Health,Leicestershire Partnership NHS Trust,18/09/18,NURSE - BAND 5 - AGENCY,Belvoir Psychiatric Intensive Care Unit,HCL NURSING,MAN28520,1062.66
Department of Health,Leicestershire Partnership NHS Trust,18/09/18,NURSE - BAND 5 - AGENCY,Bosworth Ward - Bradgate Unit,HCL NURSING,MAN28520,-329.81
Department of Health,Leicestershire Partnership NHS Trust,18/09/18,Nurse - Band 6 -Agency,Crisis Resolution,HCL NURSING,MAN28520,5502.20
Department of Health,Leicestershire Partnership NHS Trust,18/09/18,Nurse - Band 6 -Agency,Deliberate Self Harm,HCL NURSING,MAN28520,664.26
Department of Health,Leicestershire Partnership NHS Trust,18/09/18,NURSE - BAND 2 - AGENCY,Griffin Ward (HPC),HCL NURSING,MAN28520,325.17
Department of Health,Leicestershire Partnership NHS Trust,18/09/18,NURSE - BAND 5 - AGENCY,Griffin Ward (HPC),HCL NURSING,MAN28520,3335.09
Department of Health,Leicestershire Partnership NHS Trust,18/09/18,NURSE - BAND 5 - AGENCY,Heather Ward,HCL NURSING,MAN28520,2192.70
Department of Health,Leicestershire Partnership NHS Trust,18/09/18,NURSE - BAND 5 - AGENCY,Mill Lodge,HCL NURSING,MAN28520,2229.59
Department of Health,Leicestershire Partnership NHS Trust,18/09/18,NURSE - BAND 2 - AGENCY,Phoenix Ward (HPC),HCL NURSING,MAN28520,228.32
Department of Health,Leicestershire Partnership NHS Trust,18/09/18,NURSE - BAND 2 - AGENCY,Sycamore (Willows),HCL NURSING,MAN28520,64.06
Department of Health,Leicestershire Partnership NHS Trust,18/09/18,NURSE - BAND 2 - AGENCY,Thornton Ward - Bradgate Unit,HCL NURSING,MAN28520,211.24
Department of Health,Leicestershire Partnership NHS Trust,18/09/18,NURSE - BAND 5 - AGENCY,Thornton Ward - Bradgate Unit,HCL NURSING,MAN28520,266.74
Department of Health,Leicestershire Partnership NHS Trust,18/09/18,NURSE - BAND 2 - AGENCY,Watermead Ward (Bradgate Unit),HCL NURSING,MAN28520,168.41
Department of Health,Leicestershire Partnership NHS Trust,19/09/18,Legal Fees,Chief Executives Office,BROWNE JACOBSON LLP,397513,26535.20
Department of Health,Leicestershire Partnership NHS Trust,24/09/18,Drugs,Adult City Drugs,JANSSEN-CILAG LTD,930443350,10066.53
Department of Health,Leicestershire Partnership NHS Trust,24/09/18,Drugs,Adult County Drugs,JANSSEN-CILAG LTD,930443350,15099.80
Department of Health,Leicestershire Partnership NHS Trust,24/09/18,Internal Printing (machines and ink),Unallocated Budgets,LEXMARK INTERNATIONAL LTD,900650004918,34119.08
Department of Health,Leicestershire Partnership NHS Trust,24/09/18,Crs_NHS_LT1y -Resus Inventory Supplied.,Balance Sheet Collection,NHS SUPPLY CHAIN (ST1450),1019120518,52206.12
Department of Health,Leicestershire Partnership NHS Trust,24/09/18,Landline Telephone Rental / Calls,"Beaumont Leys Health Centre (P94, LPT)",VIRGIN MEDIA BUSINESS,853083001/004/0918,377.65
Department of Health,Leicestershire Partnership NHS Trust,24/09/18,Landline Telephone Rental / Calls,Belgrave Health Centre (CHP),VIRGIN MEDIA BUSINESS,853083001/004/0918,397.35
Department of Health,Leicestershire Partnership NHS Trust,24/09/18,Landline Telephone Rental / Calls,"Bennion Centre (including Forest Grange Day Unit) (P8, LPT)",VIRGIN MEDIA BUSINESS,853083001/004/0918,7.74
Department of Health,Leicestershire Partnership NHS Trust,24/09/18,Landline Telephone Rental / Calls,"Bradgate Unit (including Glenvale day Unit) (P7, LPT)",VIRGIN MEDIA BUSINESS,853083001/004/0918,7881.50
Department of Health,Leicestershire Partnership NHS Trust,24/09/18,Landline Telephone Rental / Calls,Braunstone Health and Social Care Centre (Part) (PROPCO),VIRGIN MEDIA BUSINESS,853083001/004/0918,1433.84
Department of Health,Leicestershire Partnership NHS Trust,24/09/18,Landline Telephone Rental / Calls,Bridge Park Plaza - First Floor (LPT),VIRGIN MEDIA BUSINESS,853083001/004/0918,3968.01
Department of Health,Leicestershire Partnership NHS Trust,24/09/18,Landline Telephone Rental / Calls,"Coalville Community Hospital (P138, LPT)",VIRGIN MEDIA BUSINESS,853083001/004/0918,1244.73
Department of Health,Leicestershire Partnership NHS Trust,24/09/18,Landline Telephone Rental / Calls,"Coalville Health Centre (P121, LPT)",VIRGIN MEDIA BUSINESS,853083001/004/0918,347.69
Department of Health,Leicestershire Partnership NHS Trust,24/09/18,Landline Telephone Rental / Calls,County Hall,VIRGIN MEDIA BUSINESS,853083001/004/0918,1431.77
Department of Health,Leicestershire Partnership NHS Trust,24/09/18,Landline Telephone Rental / Calls,Estates & Facilities Central,VIRGIN MEDIA BUSINESS,853083001/004/0918,3617.84
Department of Health,Leicestershire Partnership NHS Trust,24/09/18,Landline Telephone Rental / Calls,"Evington Centre (P6, LPT)",VIRGIN MEDIA BUSINESS,853083001/004/0918,1497.39
Department of Health,Leicestershire Partnership NHS Trust,24/09/18,Landline Telephone Rental / Calls,HIS,VIRGIN MEDIA BUSINESS,853083001/004/0918,2821.48
Department of Health,Leicestershire Partnership NHS Trust,24/09/18,Landline Telephone Rental / Calls,"Hawthorne Centre - Coalville (P14, LPT)",VIRGIN MEDIA BUSINESS,853083001/004/0918,514.12
Department of Health,Leicestershire Partnership NHS Trust,24/09/18,Landline Telephone Rental / Calls,Hinckley & District Hospital (PROPCO),VIRGIN MEDIA BUSINESS,853083001/004/0918,1297.97
Department of Health,Leicestershire Partnership NHS Trust,24/09/18,Landline Telephone Rental / Calls,"Hinckley and Bosworth Community Hospital (Sunnyside) (P133, LPT)",VIRGIN MEDIA BUSINESS,853083001/004/0918,1034.92
Department of Health,Leicestershire Partnership NHS Trust,24/09/18,Landline Telephone Rental / Calls,Hood Park Leisure Centre Clinic,VIRGIN MEDIA BUSINESS,853083001/004/0918,79.39
Department of Health,Leicestershire Partnership NHS Trust,24/09/18,Landline Telephone Rental / Calls,"Hynca Lodge (P33, LPT)",VIRGIN MEDIA BUSINESS,853083001/004/0918,375.40
Department of Health,Leicestershire Partnership NHS Trust,24/09/18,Landline Telephone Rental / Calls,"Legion House, Ashby",VIRGIN MEDIA BUSINESS,853083001/004/0918,58.56
Department of Health,Leicestershire Partnership NHS Trust,24/09/18,Landline Telephone Rental / Calls,Loughborough Health Centre (PROPCO),VIRGIN MEDIA BUSINESS,853083001/004/0918,9.99
Department of Health,Leicestershire Partnership NHS Trust,24/09/18,Landline Telephone Rental / Calls,"Loughborough Hospital (P136, LPT)",VIRGIN MEDIA BUSINESS,853083001/004/0918,4265.02
Department of Health,Leicestershire Partnership NHS Trust,24/09/18,Landline Telephone Rental / Calls,Mawson House (LPT),VIRGIN MEDIA BUSINESS,853083001/004/0918,442.79
Department of Health,Leicestershire Partnership NHS Trust,24/09/18,Landline Telephone Rental / Calls,Melbourne Centre (Pt Grnd flr) (PROPCO),VIRGIN MEDIA BUSINESS,853083001/004/0918,6.45
Department of Health,Leicestershire Partnership NHS Trust,24/09/18,Landline Telephone Rental / Calls,Melton Mowbray Hospital (previously St. Mary's) (PROPCO),VIRGIN MEDIA BUSINESS,853083001/004/0918,1711.42
Department of Health,Leicestershire Partnership NHS Trust,24/09/18,Landline Telephone Rental / Calls,Merlyn Vaz Centre (CHP),VIRGIN MEDIA BUSINESS,853083001/004/0918,1934.66
Department of Health,Leicestershire Partnership NHS Trust,24/09/18,Landline Telephone Rental / Calls,"Mett Centre (P49, LPT)",VIRGIN MEDIA BUSINESS,853083001/004/0918,93.40
Department of Health,Leicestershire Partnership NHS Trust,24/09/18,Landline Telephone Rental / Calls,NSPCC Training Cente,VIRGIN MEDIA BUSINESS,853083001/004/0918,175.78
Department of Health,Leicestershire Partnership NHS Trust,24/09/18,Landline Telephone Rental / Calls,New Parks Health Centre (PROPCO),VIRGIN MEDIA BUSINESS,853083001/004/0918,1988.20
Department of Health,Leicestershire Partnership NHS Trust,24/09/18,Landline Telephone Rental / Calls,"OSL House (P54, LPT)",VIRGIN MEDIA BUSINESS,853083001/004/0918,3347.84
Department of Health,Leicestershire Partnership NHS Trust,24/09/18,Landline Telephone Rental / Calls,"Orchard Resource Centre (P15, LPT)",VIRGIN MEDIA BUSINESS,853083001/004/0918,526.61
Department of Health,Leicestershire Partnership NHS Trust,24/09/18,Landline Telephone Rental / Calls,Pasley Road Health Centre (PROPCO),VIRGIN MEDIA BUSINESS,853083001/004/0918,191.72
Department of Health,Leicestershire Partnership NHS Trust,24/09/18,Landline Telephone Rental / Calls,"Prince Philip House (P96, LPT)",VIRGIN MEDIA BUSINESS,853083001/004/0918,1554.89
Department of Health,Leicestershire Partnership NHS Trust,24/09/18,Landline Telephone Rental / Calls,Rushey Mead Health Centre (PROPCO),VIRGIN MEDIA BUSINESS,853083001/004/0918,252.82
Department of Health,Leicestershire Partnership NHS Trust,24/09/18,Landline Telephone Rental / Calls,"Shepshed Health Centre (P123, LPT)",VIRGIN MEDIA BUSINESS,853083001/004/0918,137.18
Department of Health,Leicestershire Partnership NHS Trust,24/09/18,Landline Telephone Rental / Calls,"Springfield Road Health Centre (P92, LPT)",VIRGIN MEDIA BUSINESS,853083001/004/0918,374.68
Department of Health,Leicestershire Partnership NHS Trust,24/09/18,Landline Telephone Rental / Calls,St Johns House (1st Floor) (PROPCO),VIRGIN MEDIA BUSINESS,853083001/004/0918,1523.20
Department of Health,Leicestershire Partnership NHS Trust,24/09/18,Landline Telephone Rental / Calls,St Peters Primary Care Centre (CHP),VIRGIN MEDIA BUSINESS,853083001/004/0918,2610.42
Department of Health,Leicestershire Partnership NHS Trust,24/09/18,Landline Telephone Rental / Calls,"Stewart House (P61, LPT)",VIRGIN MEDIA BUSINESS,853083001/004/0918,7.74
Department of Health,Leicestershire Partnership NHS Trust,24/09/18,Landline Telephone Rental / Calls,"Swithland House - London Road 352 (P44, LPT)",VIRGIN MEDIA BUSINESS,853083001/004/0918,363.67
Department of Health,Leicestershire Partnership NHS Trust,24/09/18,Landline Telephone Rental / Calls,"The Cedars (P19, LPT)",VIRGIN MEDIA BUSINESS,853083001/004/0918,602.90
Department of Health,Leicestershire Partnership NHS Trust,24/09/18,Landline Telephone Rental / Calls,"The Willows - Cordelia Close (P22, LPT)",VIRGIN MEDIA BUSINESS,853083001/004/0918,434.12
Department of Health,Leicestershire Partnership NHS Trust,24/09/18,Landline Telephone Rental / Calls,Uppingham Road Health Centre (PROPCO),VIRGIN MEDIA BUSINESS,853083001/004/0918,220.35
Department of Health,Leicestershire Partnership NHS Trust,24/09/18,Landline Telephone Rental / Calls,"Valentine Centre (P3, LPT)",VIRGIN MEDIA BUSINESS,853083001/004/0918,1611.19
Department of Health,Leicestershire Partnership NHS Trust,24/09/18,Landline Telephone Rental / Calls,Warren Park Way 25 (PROPCO),VIRGIN MEDIA BUSINESS,853083001/004/0918,1018.03
Department of Health,Leicestershire Partnership NHS Trust,24/09/18,Landline Telephone Rental / Calls,"Westcotes Group -Westcotes House (P78, LPT)",VIRGIN MEDIA BUSINESS,853083001/004/0918,1344.48
Department of Health,Leicestershire Partnership NHS Trust,24/09/18,Landline Telephone Rental / Calls,Westcotes Health Centre (CHP),VIRGIN MEDIA BUSINESS,853083001/004/0918,756.96
Department of Health,Leicestershire Partnership NHS Trust,24/09/18,Landline Telephone Rental / Calls,"Winstanley Drive Health Centre (P8, LPT)",VIRGIN MEDIA BUSINESS,853083001/004/0918,437.86
Department of Health,Leicestershire Partnership NHS Trust,24/09/18,Nurse - Band 6 -Agency,Adult City East CMHT - Merlyn Vaz,HCL NURSING,MAN28558,1756.68
Department of Health,Leicestershire Partnership NHS Trust,24/09/18,Nurse - Band 6 -Agency,Adult County Charnwood CMHT - Loughborough Base,HCL NURSING,MAN28558,2311.88
Department of Health,Leicestershire Partnership NHS Trust,24/09/18,Nurse - Band 6 -Agency,Adult County North West Leicestershire CMHT,HCL NURSING,MAN28558,641.93
Department of Health,Leicestershire Partnership NHS Trust,24/09/18,NURSE - BAND 2 - AGENCY,Ashby Ward (Bradgate Unit),HCL NURSING,MAN28558,479.14
Department of Health,Leicestershire Partnership NHS Trust,24/09/18,NURSE - BAND 5 - AGENCY,Ashby Ward (Bradgate Unit),HCL NURSING,MAN28558,339.96
Department of Health,Leicestershire Partnership NHS Trust,24/09/18,NURSE - BAND 2 - AGENCY,Aston Ward (Bradgate Unit),HCL NURSING,MAN28558,428.97
Department of Health,Leicestershire Partnership NHS Trust,24/09/18,NURSE - BAND 5 - AGENCY,Aston Ward (Bradgate Unit),HCL NURSING,MAN28558,370.38
Department of Health,Leicestershire Partnership NHS Trust,24/09/18,NURSE - BAND 2 - AGENCY,Beaumont Ward - Bradgate Unit,HCL NURSING,MAN28558,144.97
Department of Health,Leicestershire Partnership NHS Trust,24/09/18,NURSE - BAND 5 - AGENCY,Beaumont Ward - Bradgate Unit,HCL NURSING,MAN28558,1249.11
Department of Health,Leicestershire Partnership NHS Trust,24/09/18,NURSE - BAND 2 - AGENCY,Belvoir Psychiatric Intensive Care Unit,HCL NURSING,MAN28558,1267.89
Department of Health,Leicestershire Partnership NHS Trust,24/09/18,NURSE - BAND 5 - AGENCY,Belvoir Psychiatric Intensive Care Unit,HCL NURSING,MAN28558,1030.01
Department of Health,Leicestershire Partnership NHS Trust,24/09/18,NURSE - BAND 2 - AGENCY,Bosworth Ward - Bradgate Unit,HCL NURSING,MAN28558,582.33
Department of Health,Leicestershire Partnership NHS Trust,24/09/18,NURSE - BAND 5 - AGENCY,Bosworth Ward - Bradgate Unit,HCL NURSING,MAN28558,266.74
Department of Health,Leicestershire Partnership NHS Trust,24/09/18,NURSE - BAND 5 - AGENCY,Crisis Resolution,HCL NURSING,MAN28558,342.02
Department of Health,Leicestershire Partnership NHS Trust,24/09/18,Nurse - Band 6 -Agency,Crisis Resolution,HCL NURSING,MAN28558,8291.56
Department of Health,Leicestershire Partnership NHS Trust,24/09/18,Nurse - Band 6 -Agency,Deliberate Self Harm,HCL NURSING,MAN28558,3254.53
Department of Health,Leicestershire Partnership NHS Trust,24/09/18,NURSE - BAND 2 - AGENCY,Griffin Ward (HPC),HCL NURSING,MAN28558,405.68
Department of Health,Leicestershire Partnership NHS Trust,24/09/18,NURSE - BAND 5 - AGENCY,Griffin Ward (HPC),HCL NURSING,MAN28558,3646.67
Department of Health,Leicestershire Partnership NHS Trust,24/09/18,NURSE - BAND 5 - AGENCY,Heather Ward,HCL NURSING,MAN28558,1779.75
Department of Health,Leicestershire Partnership NHS Trust,24/09/18,Nurse - Band 6 -Agency,Mental Health Triage Team,HCL NURSING,MAN28558,700.06
Department of Health,Leicestershire Partnership NHS Trust,24/09/18,NURSE - BAND 5 - AGENCY,Mill Lodge,HCL NURSING,MAN28558,2153.50
Department of Health,Leicestershire Partnership NHS Trust,24/09/18,NURSE - BAND 2 - AGENCY,Phoenix Ward (HPC),HCL NURSING,MAN28558,488.03
Department of Health,Leicestershire Partnership NHS Trust,24/09/18,NURSE - BAND 2 - AGENCY,Stewart House,HCL NURSING,MAN28558,186.39
Department of Health,Leicestershire Partnership NHS Trust,24/09/18,NURSE - BAND 2 - AGENCY,Thornton Ward - Bradgate Unit,HCL NURSING,MAN28558,168.41
Department of Health,Leicestershire Partnership NHS Trust,24/09/18,NURSE - BAND 2 - AGENCY,Watermead Ward (Bradgate Unit),HCL NURSING,MAN28558,440.83
Department of Health,Leicestershire Partnership NHS Trust,26/09/18,GP IT Expenditure,Area Team,DELL COMPUTERS,7402467243,53164.80
Department of Health,Leicestershire Partnership NHS Trust,28/09/18,Drugs,Dementia Related Drugs and Investigations,LLOYDS PHARMACY,75252,30583.33
Department of Health,Leicestershire Partnership NHS Trust,28/09/18,NURSE - BAND 2 - AGENCY,AGNES UNIT POD 2,HCL NURSING,MAN28590,116.19
Department of Health,Leicestershire Partnership NHS Trust,28/09/18,Nurse - Band 6 -Agency,Adult City East CMHT - Merlyn Vaz,HCL NURSING,MAN28590,1759.50
Department of Health,Leicestershire Partnership NHS Trust,28/09/18,Nurse - Band 6 -Agency,Adult County Charnwood CMHT - Loughborough Base,HCL NURSING,MAN28590,1539.67
Department of Health,Leicestershire Partnership NHS Trust,28/09/18,Nurse - Band 6 -Agency,Adult County North West Leicestershire CMHT,HCL NURSING,MAN28590,23.70
Department of Health,Leicestershire Partnership NHS Trust,28/09/18,NURSE - BAND 2 - AGENCY,Ashby Ward (Bradgate Unit),HCL NURSING,MAN28590,218.87
Department of Health,Leicestershire Partnership NHS Trust,28/09/18,NURSE - BAND 5 - AGENCY,Ashby Ward (Bradgate Unit),HCL NURSING,MAN28590,329.81
Department of Health,Leicestershire Partnership NHS Trust,28/09/18,NURSE - BAND 5 - AGENCY,Aston Ward (Bradgate Unit),HCL NURSING,MAN28590,3155.32
Department of Health,Leicestershire Partnership NHS Trust,28/09/18,NURSE - BAND 2 - AGENCY,Beaumont Ward - Bradgate Unit,HCL NURSING,MAN28590,403.42
Department of Health,Leicestershire Partnership NHS Trust,28/09/18,NURSE - BAND 5 - AGENCY,Beaumont Ward - Bradgate Unit,HCL NURSING,MAN28590,1343.46
Department of Health,Leicestershire Partnership NHS Trust,28/09/18,NURSE - BAND 2 - AGENCY,Belvoir Psychiatric Intensive Care Unit,HCL NURSING,MAN28590,2730.34
Department of Health,Leicestershire Partnership NHS Trust,28/09/18,NURSE - BAND 5 - AGENCY,Belvoir Psychiatric Intensive Care Unit,HCL NURSING,MAN28590,1966.52
Department of Health,Leicestershire Partnership NHS Trust,28/09/18,NURSE - BAND 2 - AGENCY,Bosworth Ward - Bradgate Unit,HCL NURSING,MAN28590,168.41
Department of Health,Leicestershire Partnership NHS Trust,28/09/18,Nurse - Band 6 -Agency,Crisis Resolution,HCL NURSING,MAN28590,5606.00
Department of Health,Leicestershire Partnership NHS Trust,28/09/18,Nurse - Band 6 -Agency,Deliberate Self Harm,HCL NURSING,MAN28590,2535.64
Department of Health,Leicestershire Partnership NHS Trust,28/09/18,NURSE - BAND 5 - AGENCY,Griffin Ward (HPC),HCL NURSING,MAN28590,1823.34
Department of Health,Leicestershire Partnership NHS Trust,28/09/18,NURSE - BAND 2 - AGENCY,Heather Ward,HCL NURSING,MAN28590,168.41
Department of Health,Leicestershire Partnership NHS Trust,28/09/18,NURSE - BAND 5 - AGENCY,Heather Ward,HCL NURSING,MAN28590,1052.52
Department of Health,Leicestershire Partnership NHS Trust,28/09/18,NURSE - BAND 2 - AGENCY,Mill Lodge,HCL NURSING,MAN28590,261.40
Department of Health,Leicestershire Partnership NHS Trust,28/09/18,NURSE - BAND 5 - AGENCY,Mill Lodge,HCL NURSING,MAN28590,1548.11
Department of Health,Leicestershire Partnership NHS Trust,28/09/18,NURSE - BAND 2 - AGENCY,Phoenix Ward (HPC),HCL NURSING,MAN28590,380.35
Department of Health,Leicestershire Partnership NHS Trust,28/09/18,NURSE - BAND 2 - AGENCY,Thornton Ward - Bradgate Unit,HCL NURSING,MAN28590,-168.41
Department of Health,Leicestershire Partnership NHS Trust,28/09/18,NURSE - BAND 2 - AGENCY,Watermead Ward (Bradgate Unit),HCL NURSING,MAN28590,654.44
Department of Health,Leicestershire Partnership NHS Trust,28/09/18,NURSE - BAND 5 - AGENCY,Watermead Ward (Bradgate Unit),HCL NURSING,MAN28590,669.77
Department of Health,Leicestershire Partnership NHS Trust,28/09/18,HR / Payroll Services,HR Employment Services,EQUINITI ICS LTD,19080518,-22320.42
